bitfinex/quotes_SOLUSD_20250912
["timestamp","ask_amount","ask_price","bid_price","bid_amount"]
[1757668135535,0.7,238.08,238.07,0.03]
[1757668135752,33.02,238.08,238.07,0.03]
[1757668136254,39.43201255,238.08,238.07,0.03]
[1757668137747,7.11201255,238.08,238.07,0.03]
[1757668138045,39.43201255,238.08,238.07,0.03]
[1757668139542,37.22026881,238.08,238.07,0.03]
[1757668139744,39.43201255,238.08,238.07,0.03]
[1757668141532,53.02760656,238.08,238.07,0.03]
[1757668141738,50.81586282,238.08,238.07,0.03]
[1757668141939,53.02760656,238.08,238.07,0.03]
[1757668142451,56.16736694,238.08,238.07,0.03]
[1757668142829,36.11976038,238.08,238.07,0.03]
[1757668143154,37.63150412,238.08,238.07,0.03]
[1757668143851,42.52177293,238.08,238.07,0.03]
[1757668144548,56.11810528,238.08,238.07,0.03]
[1757668147962,55.42810528,238.08,238.07,0.03]
[1757668148845,56.11810528,238.08,238.07,0.03]
[1757668149545,55.42810528,238.08,238.07,0.03]
[1757668150358,32.26,238.08,238.07,0.75]
[1757668150661,32.26,238.08,238.07,0.03]
[1757668152358,0.06,238.09,238.07,0.75]
[1757668152561,32.26,238.08,238.07,0.03]
[1757668153067,32.28,238.08,238.07,0.75]
[1757668153666,32.28,238.08,238.07,4.95044524]
[1757668154237,0.06,238.09,238.07,4.95044524]
[1757668154543,32.28,238.08,238.07,30.23044524]
[1757668155136,32.28,238.08,238.07,30.95044524]
[1757668155537,0.06,238.09,238.08,26.0]
[1757668155739,32.34,238.09,238.08,30.92026881]
[1757668156857,0.06,238.09,238.08,30.92026881]
[1757668157759,1e-08,238.09,238.08,30.92026881]
[1757668158959,1e-08,238.09,238.08,44.51586282]
[1757668159162,0.06,238.12,238.08,55.01653486]
[1757668159368,0.06,238.12,238.09,0.72]
[1757668160846,0.06,238.12,238.1,4.199916]
[1757668161266,0.06,238.12,238.11,0.72]
[1757668162156,0.75,238.12,238.08,30.20011735]
[1757668162356,0.69,238.11,238.07,0.03]
[1757668162559,0.69,238.11,238.08,26.0]
[1757668162868,2.90174374,238.1,238.07,0.03]
[1757668163058,2.21174374,238.09,238.07,0.03]
[1757668163440,0.69,238.08,238.07,0.03]
[1757668163860,2.90174374,238.08,238.07,0.03]
[1757668164267,0.69,238.08,238.07,0.03]
[1757668164654,36.55957421,238.12,238.07,0.03]
[1757668164655,0.69,238.11,238.07,0.03]
[1757668164857,4.14665068,238.11,238.07,0.03]
[1757668165058,0.72,238.1,238.07,0.03]
[1757668166266,0.72,238.09,238.07,0.03]
[1757668166967,0.72,238.08,238.07,0.03]
[1757668169884,0.78,238.1,238.07,0.03]
[1757668170257,0.72,238.09,238.07,0.03]
[1757668171960,0.72,238.08,238.07,0.03]
[1757668175373,0.06,238.1,238.07,0.03]
[1757668175577,32.28,238.09,238.07,0.03]
[1757668176668,0.06,238.1,238.07,0.03]
[1757668176980,33.06,238.1,238.07,0.03]
[1757668177575,32.34,238.1,238.07,0.03]
[1757668177887,0.72,238.09,238.07,0.03]
[1757668178276,0.72,238.08,238.07,0.03]
[1757668185717,21.9725135,238.08,238.07,0.03]
[1757668185907,13.59559401,238.07,238.04,0.03]
[1757668186087,17.05224469,238.05,238.04,0.03]
[1757668186511,17.77224469,238.05,238.02,0.03]
[1757668186714,17.05224469,238.03,238.02,0.03]
[1757668187017,20.18673764,238.03,238.02,0.03]
[1757668187313,20.90673764,238.03,238.02,0.03]
[1757668187502,25.10788875,238.03,238.02,0.03]
[1757668188719,0.06,238.1,238.02,0.71]
[1757668189019,0.06,238.1,238.06,26.0]
[1757668189197,0.06,238.1,238.07,0.68]
[1757668190723,0.06,238.1,238.09,26.0]
[1757668190905,0.06,238.1,238.09,26.68]
[1757668191801,0.06,238.1,238.09,30.8800924]
[1757668196220,0.06,238.1,238.09,4.8800924]
[1757668200319,0.06,238.1,238.09,4.2000924]
[1757668201933,0.06,238.1,238.07,14.70147487]
[1757668202123,0.06,238.1,238.08,0.67]
[1757668202318,0.06,238.1,238.09,26.0]
[1757668202847,0.06,238.1,238.09,26.67]
[1757668203333,0.06,238.1,238.09,30.8700924]
[1757668205426,0.06,238.11,238.09,30.8700924]
[1757668205630,0.06,238.11,238.1,0.67]
[1757668206612,0.74,238.11,238.09,4.2000924]
[1757668206809,0.68,238.1,238.09,4.2000924]
[1757668207229,0.06,238.11,238.1,26.0]
[1757668207411,0.06,238.11,238.1,30.869916]
[1757668209419,0.06,238.12,238.1,44.46551001]
[1757668209737,0.06,238.12,238.11,0.67]
[1757668210736,0.06,238.12,238.11,4.86973961]
[1757668215438,1e-08,238.13,238.12,26.0]
[1757668215633,1e-08,238.13,238.12,26.67]
[1757668218349,1e-08,238.13,238.12,30.86956324]
[1757668221631,1e-08,238.13,238.12,30.89956324]
[1757668222355,1e-08,238.13,238.12,62.76956324]
[1757668222734,1e-08,238.13,238.12,63.43956324]
[1757668224845,1e-08,238.13,238.12,30.89956324]
[1757668225157,1e-08,238.13,238.12,63.41956324]
[1757668225341,1e-08,238.14,238.12,63.41956324]
[1757668225543,1e-08,238.14,238.13,0.69]
[1757668227385,1e-08,238.14,238.13,63.38938688]
[1757668228559,1e-08,238.15,238.13,76.98498089]
[1757668228768,1e-08,238.15,238.14,0.69]
[1757668228966,1e-08,238.15,238.14,14.28559401]
[1757668229440,1e-08,238.15,238.14,18.48480455]
[1757668230469,1e-08,238.15,238.14,17.79480455]
[1757668230970,1e-08,238.19,238.18,39.59559401]
[1757668231171,0.1,238.29,238.18,39.59559401]
[1757668231172,0.69,238.25,238.18,72.09559401]
[1757668231543,0.69,238.25,238.18,72.78559401]
[1757668231850,0.69,238.24,238.18,72.78559401]
[1757668232253,0.69,238.24,238.18,72.09559401]
[1757668232452,0.69,238.24,238.14,95.59723691]
[1757668232453,0.69,238.23,238.15,2.20925393]
[1757668232654,0.69,238.22,238.19,26.0]
[1757668232953,0.69,238.21,238.2,4.19815281]
[1757668234055,0.69,238.21,238.18,10.49590329]
[1757668237295,0.69,238.21,238.18,14.69440862]
[1757668237963,0.69,238.28,238.19,40.28559401]
[1757668238146,0.69,238.28,238.24,26.0]
[1757668238975,0.69,238.27,238.24,26.0]
[1757668239154,0.69,238.27,238.25,4.19727177]
[1757668239355,0.79,238.29,238.25,4.19727177]
[1757668239672,0.69,238.28,238.25,4.19727177]
[1757668239855,0.1,238.29,238.25,14.6904512]
[1757668240252,0.1,238.29,238.28,26.0]
[1757668240767,0.69,238.37,238.28,59.23]
[1757668240968,0.1,238.39,238.29,0.69]
[1757668241172,0.69,238.38,238.3,14.68736885]
[1757668241347,0.69,238.37,238.3,14.68736885]
[1757668241547,0.69,238.36,238.3,14.68736885]
[1757668241781,0.69,238.35,238.3,14.68736885]
[1757668242075,0.69,238.34,238.3,14.68736885]
[1757668242575,0.69,238.34,238.3,11.18097775]
[1757668243391,0.69,238.36,238.3,15.37736885]
[1757668244162,0.69,238.35,238.3,4.1963911]
[1757668244357,2.89925393,238.34,238.3,26.0]
[1757668244553,0.69,238.33,238.3,26.0]
[1757668244758,2.89925393,238.32,238.24,10.49351584]
[1757668244990,0.69,238.31,238.27,26.0]
[1757668245174,0.69,238.3,238.27,26.0]
[1757668245372,0.69,238.29,238.24,10.49351584]
[1757668245678,0.69,238.29,238.27,26.0]
[1757668245881,0.69,238.31,238.27,26.0]
[1757668246081,0.69,238.3,238.27,26.0]
[1757668246581,2.20925393,238.34,238.27,26.0]
[1757668246887,0.69,238.3,238.27,26.0]
[1757668247185,0.69,238.3,238.28,4.19674332]
[1757668247478,0.69,238.3,238.29,26.0]
[1757668248554,0.69,238.3,238.29,30.1965672]
[1757668250962,4.1951769,238.37,238.29,30.1965672]
[1757668251165,0.69,238.34,238.29,4.1965672]
[1757668251489,0.69,238.33,238.29,4.1965672]
[1757668251690,0.69,238.32,238.29,4.1965672]
[1757668252013,0.69,238.31,238.3,26.0]
[1757668252169,0.69,238.33,238.3,30.1963911]
[1757668252368,0.69,238.32,238.3,30.1963911]
[1757668252775,6.40443083,238.37,238.3,30.1963911]
[1757668252977,0.69,238.36,238.3,30.1963911]
[1757668253382,0.69,238.35,238.3,30.1963911]
[1757668253580,0.69,238.34,238.3,30.1963911]
[1757668253883,0.69,238.33,238.31,26.0]
[1757668254387,2.20925393,238.37,238.3,4.1963911]
[1757668254588,0.69,238.32,238.28,4.19658179]
[1757668254798,0.69,238.31,238.28,4.19658179]
[1757668254993,0.65,238.3,238.28,4.19658179]
[1757668255200,0.65,238.29,238.28,4.19658179]
[1757668255688,0.65,238.29,238.27,30.19691946]
[1757668256293,0.65,238.28,238.22,12.53438413]
[1757668256599,0.65,238.27,238.22,12.53438413]
[1757668256804,0.65,238.27,238.25,26.0]
[1757668257017,0.65,238.29,238.26,26.0]
[1757668257193,0.65,238.31,238.26,26.0]
[1757668257511,0.65,238.31,238.26,26.66]
[1757668257713,0.65,238.31,238.27,4.19691946]
[1757668258305,0.65,238.3,238.27,4.19691946]
[1757668258688,0.65,238.32,238.27,14.68921811]
[1757668258883,0.65,238.37,238.3,26.0]
[1757668259195,0.75,238.39,238.31,0.66]
[1757668259398,0.06,238.33,238.31,0.66]
[1757668259604,0.06,238.33,238.32,0.66]
[1757668259808,0.06,238.33,238.32,4.85603893]
[1757668260395,0.06,238.33,238.32,4.19603893]
[1757668261794,0.06,238.33,238.31,4.19621501]
[1757668262029,0.06,238.33,238.29,4.19641896]
[1757668262211,0.65,238.32,238.3,26.0]
[1757668262406,0.65,238.31,238.3,26.0]
[1757668264129,0.65,238.31,238.29,4.19641896]
[1757668265209,0.65,238.31,238.27,10.52221571]
[1757668267336,0.06,238.33,238.27,10.52221571]
[1757668267638,0.65,238.31,238.27,10.52221571]
[1757668270937,4.25586517,238.33,238.27,26.03]
[1757668271147,0.65,238.3,238.27,26.03]
[1757668271846,0.65,238.32,238.27,26.03]
[1757668272029,0.65,238.31,238.27,26.03]
[1757668272340,6.46515029,238.33,238.27,26.03]
[1757668272510,0.65,238.32,238.27,26.03]
[1757668272939,0.65,238.31,238.27,26.03]
[1757668273240,0.65,238.31,238.28,4.19674332]
[1757668274618,0.06,238.33,238.28,4.19674332]
[1757668274939,0.06,238.33,238.29,0.66]
[1757668275240,0.06,238.33,238.3,4.1963911]
[1757668276241,0.71,238.33,238.3,4.1963911]
[1757668276941,0.71,238.33,238.27,0.03]
[1757668277240,0.71,238.33,238.27,0.69]
[1757668279135,0.71,238.33,238.28,4.19674332]
[1757668279439,0.06,238.33,238.28,4.19674332]
[1757668280046,0.65,238.32,238.28,4.85674332]
[1757668280626,0.65,238.32,238.28,4.19674332]
[1757668282062,0.65,238.32,238.27,4.22691946]
[1757668282219,0.65,238.32,238.27,4.88691946]
[1757668282416,0.65,238.32,238.28,0.66]
[1757668283540,0.06,238.33,238.29,0.66]
[1757668284055,0.06,238.33,238.3,4.1963911]
[1757668284357,0.06,238.33,238.31,0.66]
[1757668284960,0.1,238.39,238.31,33.14]
[1757668285158,0.1,238.39,238.34,26.0]
[1757668285330,0.76,238.39,238.34,26.0]
[1757668285651,0.66,238.38,238.34,26.66]
[1757668285858,0.1,238.39,238.34,26.66]
[1757668286062,0.76,238.39,238.35,14.6842878]
[1757668287566,0.1,238.39,238.35,14.6842878]
[1757668287772,0.66,238.38,238.35,14.6842878]
[1757668288481,0.66,238.37,238.35,10.488777]
[1757668288644,0.76,238.39,238.35,10.488777]
[1757668288849,0.66,238.38,238.35,10.488777]
[1757668289265,0.1,238.39,238.35,10.488777]
[1757668289746,0.1,238.39,238.35,11.148777]
[1757668290045,0.1,238.39,238.36,0.66]
[1757668290359,0.1,238.39,238.37,4.19515878]
[1757668290667,0.1,238.39,238.38,26.66]
[1757668291164,0.1,238.39,238.38,26.0]
[1757668291376,0.76,238.39,238.38,26.0]
[1757668292275,4.20855497,238.39,238.34,4.19568683]
[1757668292476,3.44855497,238.36,238.32,14.68594488]
[1757668292779,3.44855497,238.36,238.33,0.66]
[1757668292965,4.10855497,238.38,238.33,0.66]
[1757668293163,3.44855497,238.38,238.33,0.66]
[1757668293369,0.66,238.37,238.33,0.66]
[1757668293876,0.66,238.37,238.34,4.19568683]
[1757668294776,3.44855497,238.38,238.34,4.19568683]
[1757668294981,4.10855497,238.38,238.34,4.19568683]
[1757668295275,0.66,238.37,238.32,10.48990595]
[1757668295455,3.44855497,238.38,238.33,0.66]
[1757668295652,0.66,238.38,238.33,0.66]
[1757668295882,4.10855497,238.38,238.33,0.66]
[1757668296079,4.10855497,238.38,238.32,10.48990595]
[1757668296380,3.44855497,238.38,238.34,0.66]
[1757668296891,3.44855497,238.38,238.35,4.1955108]
[1757668297099,4.10855497,238.38,238.35,4.1955108]
[1757668297996,3.44855497,238.38,238.33,40.68552006]
[1757668298154,0.66,238.37,238.33,40.68552006]
[1757668299056,0.66,238.37,238.33,41.34552006]
[1757668299256,3.44855497,238.38,238.33,41.34552006]
[1757668299470,4.10855497,238.38,238.33,41.34552006]
[1757668301585,0.66,238.37,238.33,41.34552006]
[1757668301796,0.1,238.39,238.28,0.69]
[1757668301797,3.44855497,238.34,238.28,0.69]
[1757668301961,3.44855497,238.32,238.29,4.1965387]
[1757668302160,3.44855497,238.3,238.29,4.1965387]
[1757668303197,3.44855497,238.32,238.28,4.22674332]
[1757668303372,3.44855497,238.32,238.29,0.66]
[1757668303573,0.66,238.35,238.29,0.66]
[1757668303785,4.10855497,238.35,238.29,0.66]
[1757668304099,3.44855497,238.34,238.29,0.66]
[1757668304597,0.66,238.33,238.28,14.71860163]
[1757668304892,3.44855497,238.34,238.29,0.66]
[1757668305075,4.10855497,238.34,238.29,0.66]
[1757668306280,0.66,238.33,238.29,0.66]
[1757668306584,3.44855497,238.34,238.3,4.1963911]
[1757668306786,3.44855497,238.34,238.3,4.8563911]
[1757668306993,0.66,238.35,238.3,15.34736885]
[1757668307284,36.64855497,238.37,238.31,0.66]
[1757668307796,33.2,238.37,238.31,0.66]
[1757668308088,36.64855497,238.37,238.31,0.66]
[1757668309877,3.44855497,238.36,238.32,4.19603893]
[1757668310074,3.44855497,238.36,238.31,0.66]
[1757668310075,3.44855497,238.34,238.28,0.03]
[1757668310267,3.44855497,238.33,238.28,0.03]
[1757668310467,3.44855497,238.34,238.29,14.68798522]
[1757668310668,0.66,238.32,238.29,14.68798522]
[1757668311090,0.66,238.31,238.29,4.1965672]
[1757668311286,0.66,238.3,238.29,4.1965672]
[1757668311589,0.66,238.3,238.29,30.1965672]
[1757668311794,0.66,238.3,238.28,0.03]
[1757668312304,0.66,238.29,238.28,26.03]
[1757668312474,17.79092879,238.36,238.28,26.03]
[1757668312674,0.66,238.31,238.28,26.03]
[1757668312880,0.66,238.3,238.28,26.03]
[1757668313596,0.66,238.3,238.29,4.1965672]
[1757668313804,0.66,238.29,238.28,0.03]
[1757668314799,4.10855497,238.29,238.28,0.03]
[1757668315567,21.90071618,238.29,238.28,0.03]
[1757668318472,21.58509443,238.29,238.28,0.03]
[1757668318672,25.0336494,238.29,238.28,0.03]
[1757668318888,3.79293322,238.29,238.28,0.03]
[1757668319082,32.56,238.29,238.28,0.03]
[1757668320781,32.58,238.29,238.28,0.03]
[1757668322797,36.70855497,238.29,238.28,0.03]
[1757668324590,33.26,238.29,238.28,0.03]
[1757668325004,0.68,238.32,238.28,0.03]
[1757668325303,32.56,238.31,238.28,0.03]
[1757668325492,33.24,238.31,238.28,0.03]
[1757668326111,32.58,238.3,238.28,0.03]
[1757668326403,17.79129439,238.34,238.29,0.67]
[1757668326404,13.59559401,238.34,238.29,0.67]
[1757668326621,36.68855497,238.33,238.28,0.03]
[1757668326912,3.44855497,238.3,238.28,0.03]
[1757668327108,32.56,238.29,238.28,0.03]
[1757668327291,33.24,238.29,238.28,0.03]
[1757668330907,32.56,238.29,238.28,0.03]
[1757668334410,33.24,238.29,238.28,0.03]
[1757668335103,32.56,238.29,238.28,0.03]
[1757668337512,36.68855497,238.29,238.28,0.03]
[1757668339095,33.24,238.29,238.28,0.03]
[1757668339410,36.68855497,238.29,238.28,0.03]
[1757668340411,33.24,238.29,238.28,0.03]
[1757668340604,36.68855497,238.29,238.28,0.03]
[1757668340801,54.48071618,238.29,238.28,0.03]
[1757668340993,54.16628417,238.29,238.28,0.03]
[1757668341204,57.61483914,238.29,238.28,0.03]
[1757668341697,57.55483914,238.29,238.28,0.03]
[1757668341903,57.55492888,238.29,238.28,0.03]
[1757668344419,61.00348385,238.29,238.28,0.03]
[1757668346607,65.15702791,238.29,238.28,0.03]
[1757668347215,56.31650471,238.29,238.28,0.03]
[1757668348307,23.13650471,238.29,238.28,0.03]
[1757668348513,35.63348718,238.29,238.28,0.03]
[1757668348712,37.84361798,238.29,238.28,0.03]
[1757668351026,35.63348718,238.29,238.28,0.03]
[1757668351225,42.73018518,238.29,238.28,0.03]
[1757668351633,10.23018518,238.29,238.28,0.03]
[1757668351933,42.73018518,238.29,238.28,0.03]
[1757668354524,56.32577919,238.29,238.28,0.03]
[1757668355410,65.16630239,238.29,238.28,0.03]
[1757668355615,54.11564839,238.29,238.28,0.03]
[1757668355818,56.32577919,238.29,238.28,0.03]
[1757668357110,56.32915886,238.29,238.28,0.03]
[1757668358524,65.16968206,238.29,238.28,0.03]
[1757668359638,21.61902806,238.29,238.28,0.03]
[1757668359826,55.61915886,238.29,238.28,0.03]
[1757668360131,55.63915886,238.29,238.28,0.03]
[1757668360713,23.13915886,238.29,238.28,0.03]
[1757668360932,55.63915886,238.29,238.28,0.03]
[1757668361536,56.32915886,238.29,238.28,0.03]
[1757668362057,56.30915886,238.29,238.28,0.03]
[1757668362263,23.82915886,238.29,238.28,0.03]
[1757668362552,56.30915886,238.29,238.28,0.03]
[1757668362927,55.61915886,238.29,238.28,0.03]
[1757668363677,16.73246086,238.29,238.28,0.03]
[1757668363838,18.94259166,238.29,238.28,0.03]
[1757668364031,51.40259166,238.29,238.28,0.03]
[1757668364237,55.59915886,238.29,238.28,0.03]
[1757668364746,65.12968206,238.29,238.28,0.03]
[1757668366067,65.12968206,238.29,238.25,0.03]
[1757668366068,24.64624801,238.28,238.25,0.03]
[1757668366252,2.2101308,238.26,238.25,0.03]
[1757668366559,5.34699765,238.26,238.25,0.03]
[1757668366750,6.03699765,238.26,238.25,0.03]
[1757668367743,23.82968726,238.26,238.25,0.03]
[1757668368434,2.86019423,238.26,238.25,3.16571456]
[1757668368634,5.98880992,238.27,238.25,3.16571456]
[1757668368838,2.2101308,238.26,238.25,0.03]
[1757668369151,34.6901308,238.26,238.25,3.16571456]
[1757668369662,38.8872264,238.26,238.25,3.16571456]
[1757668370576,39.5772264,238.26,238.25,3.16571456]
[1757668371480,38.8872264,238.26,238.25,3.16571456]
[1757668371780,38.8872264,238.26,238.25,3.16526755]
[1757668372357,38.8872264,238.26,238.25,3.1651945]
[1757668372358,39.5772264,238.26,238.25,3.1651945]
[1757668372743,38.8872264,238.26,238.25,3.1651945]
[1757668373672,13.59559401,238.25,238.24,0.03]
[1757668373876,15.80572481,238.25,238.24,0.03]
[1757668374051,16.49572481,238.25,238.24,0.03]
[1757668374656,38.29946237,238.25,238.17,0.68]
[1757668374862,34.6701308,238.24,238.17,0.68]
[1757668375056,36.35013248,238.24,238.17,0.68]
[1757668375265,37.05013248,238.24,238.17,0.68]
[1757668375649,41.24758043,238.24,238.22,0.03]
[1757668376646,54.84317444,238.24,238.22,0.03]
[1757668376848,26.0,238.25,238.23,0.69]
[1757668377154,26.0,238.25,238.24,0.66]
[1757668377355,32.52,238.25,238.24,0.66]
[1757668378086,36.71727177,238.25,238.23,0.03]
[1757668378269,4.19674332,238.28,238.23,0.69]
[1757668378454,26.33848027,238.27,238.23,0.69]
[1757668378654,28.54861107,238.27,238.23,0.69]
[1757668379772,32.52,238.26,238.23,0.69]
[1757668380660,30.5345667,238.26,238.24,0.66]
[1757668380851,30.5345667,238.26,238.25,0.66]
[1757668381175,32.54,238.26,238.25,0.66]
[1757668381478,31.82,238.28,238.25,0.66]
[1757668381664,32.54,238.28,238.26,4.1970956]
[1757668381979,32.54,238.28,238.27,0.66]
[1757668384679,0.06,238.32,238.27,4.85683097]
[1757668384875,32.68,238.32,238.28,0.66]
[1757668385177,0.06,238.32,238.3,26.0]
[1757668385364,32.68,238.32,238.31,4.85621501]
[1757668385975,0.06,238.33,238.31,4.85621501]
[1757668386178,0.06,238.33,238.32,0.66]
[1757668387786,0.06,238.33,238.32,4.85603893]
[1757668388163,0.06,238.33,238.32,0.66]
[1757668390383,0.06,238.33,238.32,4.85603893]
[1757668391160,0.06,238.33,238.32,0.66]
[1757668392263,0.06,238.33,238.32,4.85603893]
[1757668395893,0.06,238.33,238.32,4.19603893]
[1757668396277,0.06,238.33,238.31,26.0]
[1757668397205,0.06,238.33,238.31,30.19619965]
[1757668397371,0.06,238.33,238.31,4.19619965]
[1757668397573,0.06,238.33,238.31,4.85619965]
[1757668397786,0.06,238.33,238.32,0.66]
[1757668398902,0.06,238.33,238.32,26.66]
[1757668399104,0.06,238.33,238.32,30.85603893]
[1757668400813,0.06,238.33,238.32,32.53427846]
[1757668404307,0.06,238.33,238.32,65.07427846]
[1757668404714,0.06,238.33,238.32,30.19603893]
[1757668405092,0.06,238.33,238.32,30.88603893]
[1757668406316,0.06,238.33,238.32,4.19603893]
[1757668406526,0.78,238.33,238.32,4.19603893]
[1757668406914,0.06,238.33,238.32,4.19603893]
[1757668408606,0.78,238.33,238.31,4.19621056]
[1757668408813,0.72,238.32,238.28,10.49159848]
[1757668409017,0.72,238.31,238.28,10.49159848]
[1757668409205,0.72,238.31,238.29,4.1965672]
[1757668409917,0.72,238.3,238.29,0.03]
[1757668410912,4.16875629,238.3,238.29,0.03]
[1757668411111,0.72,238.3,238.29,0.03]
[1757668414526,4.9163911,238.3,238.29,0.03]
[1757668415419,4.16875629,238.3,238.29,0.03]
[1757668415625,3.44875629,238.3,238.29,0.03]
[1757668416017,4.16875629,238.3,238.29,0.03]
[1757668417933,8.36514739,238.3,238.29,0.03]
[1757668419816,11.48948926,238.3,238.29,0.03]
[1757668421214,8.36514739,238.3,238.29,0.03]
[1757668422315,11.49324796,238.3,238.29,0.03]
[1757668422845,4.9163911,238.3,238.29,0.03]
[1757668423027,8.36514739,238.3,238.29,0.03]
[1757668424143,7.64514739,238.3,238.29,0.03]
[1757668424328,40.90514739,238.3,238.29,0.03]
[1757668425529,37.4563911,238.3,238.29,0.03]
[1757668425722,40.90514739,238.3,238.29,0.03]
[1757668426230,44.03398785,238.3,238.29,0.03]
[1757668429344,57.62958186,238.3,238.29,0.03]
[1757668433448,44.03398785,238.3,238.29,0.03]
[1757668433749,40.18514739,238.3,238.29,0.03]
[1757668437056,40.85514739,238.3,238.29,0.03]
[1757668437456,13.59559401,238.29,238.27,0.03]
[1757668437635,13.59559401,238.27,238.26,0.03]
[1757668437837,17.0443503,238.27,238.26,0.03]
[1757668438138,17.7143503,238.27,238.26,0.03]
[1757668438454,25.03666451,238.27,238.26,0.03]
[1757668441656,35.52896316,238.27,238.23,0.03]
[1757668441857,17.0443503,238.24,238.23,0.03]
[1757668442056,52.64974505,238.24,238.23,0.03]
[1757668442355,53.31974505,238.24,238.23,0.03]
[1757668442570,43.25159899,238.24,238.23,0.03]
[1757668443262,40.12620424,238.24,238.23,0.03]
[1757668443665,4.19724064,238.26,238.23,0.74]
[1757668443866,35.94875629,238.25,238.23,0.03]
[1757668444066,3.44875629,238.24,238.23,0.03]
[1757668445367,7.64620424,238.24,238.23,0.74]
[1757668446165,7.64620424,238.24,238.23,0.03]
[1757668449371,32.48,238.25,238.23,0.03]
[1757668449548,0.67,238.26,238.23,0.03]
[1757668449742,32.52,238.25,238.23,0.03]
[1757668452649,35.96875629,238.25,238.23,0.03]
[1757668453074,32.52,238.25,238.23,0.03]
[1757668454273,36.71729281,238.25,238.23,0.03]
[1757668455371,36.51729281,238.25,238.23,0.03]
[1757668456154,7.64620424,238.24,238.23,0.03]
[1757668457271,4.19744795,238.24,238.23,0.03]
[1757668457473,7.64620424,238.24,238.23,0.03]
[1757668463484,4.19744795,238.24,238.23,0.03]
[1757668463778,7.64620424,238.24,238.23,0.03]
[1757668465783,131.1,238.26,238.23,0.03]
[1757668465985,32.5,238.25,238.23,0.03]
[1757668466585,0.06,238.25,238.23,0.03]
[1757668466762,32.44,238.24,238.23,0.03]
[1757668467175,0.06,238.25,238.23,0.03]
[1757668467484,32.5,238.25,238.23,0.03]
[1757668468766,0.06,238.25,238.23,0.03]
[1757668476192,2.26910316,238.25,238.23,0.03]
[1757668476566,0.06,238.25,238.23,0.03]
[1757668486412,6.46641817,238.25,238.23,0.03]
[1757668487301,3.13807645,238.24,238.23,0.03]
[1757668488704,0.06,238.25,238.23,0.03]
[1757668488911,0.06,238.25,238.24,26.0]
[1757668490284,0.06,238.25,238.24,4.19744795]
[1757668490881,0.06,238.25,238.24,43.79304196]
[1757668492830,0.06,238.25,238.24,45.47177452]
[1757668495534,0.06,238.25,238.24,78.03177452]
[1757668496837,0.06,238.25,238.24,45.47177452]
[1757668497039,0.06,238.25,238.24,78.01177452]
[1757668498131,0.06,238.27,238.26,13.59559401]
[1757668498314,0.06,238.3,238.29,26.0]
[1757668498631,0.06,238.3,238.29,58.76]
[1757668498837,0.06,238.3,238.29,60.43845079]
[1757668499726,0.06,238.3,238.29,64.63501799]
[1757668500335,0.06,238.3,238.29,31.87501799]
[1757668500526,0.06,238.3,238.29,4.1965672]